fUSD/lending_fUSD_20260404
["ID","MTS","AMOUNT","RATE_DAILY","PERIOD"]
[419701409,1775316643545,-150.0,0.00014836,2]
[419701410,1775316643556,-150.0,0.00014841,2]
[419701411,1775316643567,-150.0,0.00014841,2]
[419701412,1775316643577,-150.0,0.00014847,2]
[419701413,1775316643588,-150.0,0.00014848,2]
[419701414,1775316643599,-150.0,0.00014848,2]
[419701415,1775316643610,-179.35,0.00014853,2]
[419701416,1775316643621,-150.0,0.00014857,2]
[419701417,1775316643632,-150.0,0.00014857,2]
[419701418,1775316643642,-150.0,0.00014857,2]
[419701419,1775316643653,-150.0,0.00014865,2]
[419701420,1775316643663,-8154.22157126,0.00014867,2]
[419701421,1775316643673,-150.0,0.00014869,2]
[419701422,1775316643683,-150.0,0.00014869,2]
[419701423,1775316643694,-150.0,0.00014869,2]
[419701424,1775316643704,-150.0,0.00014884,2]
[419701425,1775316643715,-150.0,0.00014891,2]
[419701426,1775316643725,-150.0,0.00014895,2]
[419701427,1775316643736,-150.0,0.00014895,2]
[419701428,1775316643745,-150.0,0.00014897,2]
[419701429,1775316643756,-150.0,0.00014897,2]
[419701430,1775316643766,-150.0,0.00014909,2]
[419701431,1775316643776,-150.0,0.00014912,2]
[419701432,1775316643786,-150.0,0.00014912,2]
[419701433,1775316643796,-150.0,0.00014921,2]
[419701434,1775316643806,-150.0,0.00014924,2]
[419701435,1775316643816,-150.0,0.00014924,2]
[419701436,1775316643826,-150.0,0.00014924,2]
[419701437,1775316643836,-150.0,0.00014933,2]
[419701438,1775316643846,-150.0,0.00014933,2]
[419701439,1775316643856,-150.0,0.00014933,2]
[419701440,1775316643866,-150.0,0.00014933,2]
[419701441,1775316643877,-150.0,0.00014952,2]
[419701442,1775316643888,-150.0,0.00014952,2]
[419701443,1775316643897,-150.0,0.00014953,2]
[419701444,1775316643907,-150.0,0.00014955,2]
[419701445,1775316643918,-150.0,0.00014958,2]
[419701446,1775316643928,-220.0,0.00014966,2]
[419701447,1775316643939,-150.0,0.00014971,2]
[419701448,1775316643949,-150.0,0.00014971,2]
[419701449,1775316643961,-150.0,0.00014976,2]
[419701450,1775316643972,-150.0,0.00014976,2]
[419701451,1775316643983,-300.0,0.00014977,2]
[419701453,1775316643994,-150.0,0.00014979,2]
[419701454,1775316644005,-150.0,0.00014979,2]
[419701455,1775316644015,-150.0,0.00014982,2]
[419701456,1775316644026,-150.0,0.00014982,2]
[419701457,1775316644036,-150.0,0.00014995,2]
[419701458,1775316644046,-150.0,0.00014997,2]
[419701459,1775316644056,-150.0,0.00015007,2]
[419701460,1775316644067,-150.0,0.00015007,2]
[419701461,1775316644077,-150.0,0.0001501,2]
[419701462,1775316644087,-162.97,0.0001501,2]
[419701463,1775316644105,-150.0,0.00015011,2]
[419701464,1775316644117,-2392.78341865,0.00015014,2]
[419701465,1775316644129,-1273.17,0.00015015,2]
[419701466,1775316644141,-220.0,0.00015018,2]
[419701467,1775316644152,-150.0,0.00015019,2]
[419701468,1775316644164,-150.0,0.0001502,2]
[419701469,1775316644176,-150.0,0.0001502,2]
[419701470,1775316644188,-150.0,0.0001502,2]
[419701471,1775316644199,-150.0,0.0001502,2]
[419701472,1775316644211,-206.0,0.0001502,2]
[419701473,1775316644223,-5409.56,0.0001503,2]
[419701474,1775316644235,-150.0,0.00015033,2]
[419701476,1775316644246,-150.0,0.00015034,2]
[419701478,1775316644257,-150.0,0.00015034,2]
[419701480,1775316644269,-400.0,0.00015035,2]
[419701482,1775316644281,-400.0,0.00015035,2]
[419701484,1775316644292,-400.0,0.00015035,2]
[419701485,1775316644303,-400.0,0.00015035,2]
[419701486,1775316644314,-400.0,0.00015035,2]
[419701487,1775316644326,-400.0,0.00015035,2]
[419701488,1775316644337,-400.0,0.00015035,2]
[419701489,1775316644348,-400.0,0.00015035,2]
[419701490,1775316644359,-400.0,0.00015035,2]
[419701491,1775316644371,-181.0,0.00015035,2]
[419701492,1775316644382,-150.0,0.0001504,2]
[419701493,1775316644393,-150.0,0.0001504,2]
[419701494,1775316644404,-150.0,0.0001504,2]
[419701495,1775316644415,-150.0,0.00015048,2]
[419701496,1775316644428,-150.0,0.00015055,2]
[419701497,1775316644439,-150.0,0.00015061,2]
[419701498,1775316644450,-150.0,0.00015062,2]
[419701499,1775316644462,-150.0,0.00015062,2]
[419701500,1775316644473,-810.83,0.00015068,2]
[419701501,1775316644484,-803.07880727,0.00015068,2]
[419701502,1775316644495,-150.0,0.00015069,2]
[419701503,1775316644507,-150.0,0.0001507,2]
[419701504,1775316644518,-200.0,0.00015077,2]
[419701505,1775316644529,-150.0,0.00015083,2]
[419701506,1775316644540,-150.0,0.00015086,2]
[419701507,1775316644551,-150.0,0.00015086,2]
[419701508,1775316644562,-150.0,0.00015086,2]
[419701509,1775316644573,-240.0,0.00015087,2]
[419701510,1775316644583,-150.0,0.0001509,2]
[419701511,1775316644600,-150.0,0.0001509,2]
[419701512,1775316644612,-220.0,0.0001509,2]
[419701513,1775316644624,-158.69724612,0.00015092,2]
[419701514,1775316644637,-150.0,0.00015098,2]
[419701515,1775316644648,-150.0,0.00015104,2]
[419701516,1775316644660,-150.0,0.00015104,2]
[419701517,1775316644672,-150.0,0.00015107,2]
[419701518,1775316644684,-150.0,0.00015117,2]
[419701519,1775316644695,-150.0,0.00015117,2]
[419701520,1775316644708,-150.0,0.00015124,2]
[419701521,1775316644719,-150.0,0.00015125,2]
[419701522,1775316644731,-150.0,0.00015127,2]
[419701523,1775316644743,-150.0,0.00015127,2]
[419701524,1775316644754,-785.54,0.00015142,2]
[419701525,1775316644766,-150.0,0.00015144,2]
[419701526,1775316644777,-150.0,0.00015145,2]
[419701527,1775316644788,-150.0,0.00015145,2]
[419701528,1775316644799,-150.0,0.00015147,2]
[419701529,1775316644811,-1974.94062421,0.00015147,2]
[419701530,1775316644821,-436.65988696,0.00015148,2]
[419701531,1775316644833,-150.0,0.00015156,2]
[419701532,1775316644844,-150.0,0.00015162,2]
[419701533,1775316644856,-150.0,0.00015168,2]
[419701534,1775316644867,-150.0,0.00015168,2]
[419701535,1775316644879,-150.0,0.00015172,2]
[419701536,1775316644891,-150.0,0.00015172,2]
[419701537,1775316644904,-150.0,0.00015181,2]
[419701538,1775316644916,-150.0,0.00015185,2]
[419701539,1775316644928,-150.0,0.00015189,2]
[419701540,1775316644940,-310.4251096,0.00015199,2]
[419701541,1775316644951,-500.0,0.00015199,2]
[419701542,1775316644962,-500.0,0.00015199,2]
[419701543,1775316644974,-9407.62396624,0.00015199,2]
[419701544,1775316644986,-1428.38747117,0.00015199,2]
[419701545,1775316644997,-500.0,0.00015199,2]
[419701546,1775316645008,-500.0,0.00015199,2]
[419701547,1775316645020,-200.0,0.00015199,2]
[419701548,1775316645095,-500.0,0.00015199,2]
[419701549,1775316645105,-250.0,0.00015199,2]
[419701550,1775316645116,-500.0,0.00015199,2]
[419701551,1775316645126,-250.0,0.00015199,2]
[419701552,1775316645136,-500.0,0.00015199,2]
[419701553,1775316645146,-250.0,0.00015199,2]
[419701554,1775316645155,-500.0,0.00015199,2]
[419701555,1775316645165,-250.0,0.00015199,2]
[419701556,1775316645175,-500.0,0.00015199,2]
[419701557,1775316645185,-250.0,0.00015199,2]
[419701558,1775316645195,-500.0,0.00015199,2]
[419701559,1775316645205,-250.0,0.00015199,2]
[419701560,1775316645215,-500.0,0.00015199,2]
[419701561,1775316645225,-250.0,0.00015199,2]
[419701562,1775316645235,-500.0,0.00015199,2]
[419701563,1775316645245,-250.0,0.00015199,2]
[419701564,1775316645254,-250.0,0.00015199,2]
[419701565,1775316645264,-250.0,0.00015199,2]
[419701566,1775316645274,-250.0,0.00015199,2]
[419701567,1775316645284,-500.0,0.00015199,2]
[419701568,1775316645294,-500.0,0.00015199,2]
[419701569,1775316645303,-151.0,0.00015199,2]
[419701570,1775316645313,-500.0,0.00015199,2]
[419701571,1775316645323,-500.0,0.00015199,2]
[419701572,1775316645332,-743.50770149,0.00015199,2]
[419701573,1775316645343,-500.0,0.00015199,2]
[419701574,1775316645352,-500.0,0.00015199,2]
[419701575,1775316645363,-500.0,0.00015199,2]
[419701576,1775316645373,-174.61919141,0.00015199,2]
[419701577,1775316645383,-500.0,0.00015199,2]
[419701578,1775316645393,-200.0,0.00015199,2]
[419701579,1775316645404,-500.0,0.00015199,2]
[419701580,1775316645414,-500.0,0.00015199,2]
[419701581,1775316645424,-500.0,0.00015199,2]
[419701582,1775316645434,-279.9045709,0.00015199,2]
[419701583,1775316645444,-170.0,0.00015199,2]
[419701584,1775316645455,-170.0,0.00015199,2]
[419701585,1775316645465,-170.0,0.00015199,2]
[419701586,1775316645475,-170.0,0.00015199,2]
[419701587,1775316645485,-170.0,0.00015199,2]
[419701588,1775316645496,-170.0,0.00015199,2]
[419701589,1775316645506,-170.0,0.00015199,2]
[419701590,1775316645516,-170.0,0.00015199,2]
[419701591,1775316645525,-170.0,0.00015199,2]
[419701592,1775316645535,-170.0,0.00015199,2]
[419701593,1775316645544,-170.0,0.00015199,2]
[419701594,1775316645554,-150.0,0.000152,2]
[419701595,1775316645564,-150.0,0.000152,2]
[419701596,1775316645575,-150.0,0.000152,2]
[419701597,1775316645585,-150.0,0.000152,2]
[419701598,1775316645596,-150.0,0.000152,2]
[419701599,1775316645606,-10000.0,0.00015205,2]
[419701600,1775316645615,-150.0,0.00015211,2]
[419701601,1775316645626,-8154.22157126,0.00015211,2]
[419701607,1775316646093,-150.0,0.00015215,2]
[419701608,1775316646103,-150.0,0.00015219,2]
[419701609,1775316646113,-150.0,0.00015228,2]
[419701610,1775316646133,-150.0,0.00015228,2]
[419701611,1775316646144,-150.0,0.00015232,2]
[419701612,1775316646156,-150.0,0.00015232,2]
[419701613,1775316646168,-150.0,0.00015238,2]
[419701614,1775316646179,-300.0,0.00015242,2]
[419701615,1775316646190,-150.0,0.00015244,2]
[419701616,1775316646202,-150.0,0.00015253,2]
[419701617,1775316646213,-500.0,0.00015254,2]
[419701618,1775316646224,-151.0,0.00015254,2]
[419701619,1775316646235,-150.0,0.00015255,2]
[419701620,1775316646246,-150.0,0.00015255,2]
[419701621,1775316646257,-150.0,0.00015256,2]
[419701622,1775316646268,-150.0,0.00015273,2]
[419701623,1775316646279,-150.0,0.00015273,2]
[419701624,1775316646290,-150.0,0.00015275,2]
[419701625,1775316646301,-150.0,0.00015276,2]
[419701626,1775316646312,-150.0,0.00015283,2]
[419701627,1775316646323,-150.0,0.00015283,2]
[419701628,1775316646334,-150.0,0.00015293,2]
[419701629,1775316646344,-150.0,0.00015296,2]
[419701630,1775316646355,-150.0,0.00015296,2]
[419701631,1775316646366,-217.3,0.00015297,2]
[419701632,1775316646377,-150.0,0.00015302,2]
[419701633,1775316646388,-500.0,0.00015309,2]
[419701634,1775316646399,-151.0,0.00015309,2]
[419701635,1775316646409,-299.99,0.0001531,2]
[419701636,1775316646420,-1266.82,0.0001531,2]
[419701637,1775316646431,-5791.26,0.0001531,2]
[419701638,1775316646442,-9277.79,0.0001531,2]
[419701639,1775316646453,-999.99,0.0001531,2]
[419701640,1775316646464,-4999.99,0.0001531,2]
[419701641,1775316646475,-150.0,0.0001531,2]
[419701642,1775316646486,-150.0,0.0001531,2]
[419701643,1775316646497,-150.0,0.00015314,2]
[419701644,1775316646508,-150.0,0.00015314,2]
[419701645,1775316646519,-150.0,0.00015314,2]
[419701646,1775316646530,-150.0,0.00015317,2]
[419701647,1775316646541,-150.0,0.0001533,2]
[419701648,1775316646551,-150.0,0.00015331,2]
[419701649,1775316646562,-150.0,0.00015338,2]
[419701650,1775316646573,-150.0,0.00015338,2]
[419701651,1775316646584,-150.0,0.00015339,2]
[419701652,1775316646595,-150.0,0.00015345,2]
[419701653,1775316646606,-150.0,0.00015352,2]
[419701654,1775316646617,-150.0,0.0001536,2]
[419701655,1775316646628,-150.0,0.0001536,2]
[419701656,1775316646639,-150.0,0.0001536,2]
[419701657,1775316646650,-500.0,0.00015364,2]
[419701658,1775316646660,-151.0,0.00015364,2]
[419701659,1775316646671,-150.0,0.00015366,2]
[419701660,1775316646682,-150.0,0.00015366,2]
[419701661,1775316646693,-150.0,0.00015367,2]
[419701662,1775316646703,-150.0,0.00015381,2]
[419701663,1775316646716,-150.0,0.00015389,2]
[419701664,1775316646727,-150.0,0.0001539,2]
[419701665,1775316646737,-150.0,0.00015393,2]
[419701666,1775316646748,-150.0,0.00015393,2]
[419701667,1775316646759,-220.0,0.00015394,2]
[419701668,1775316646769,-587.0,0.00015397,2]
[419701669,1775316646780,-150.0,0.00015403,2]
[419701670,1775316646791,-150.0,0.00015405,2]
[419701671,1775316646801,-785.54,0.00015416,2]
[419701672,1775316646813,-150.0,0.00015418,2]
[419701673,1775316646823,-150.0,0.00015418,2]
[419701674,1775316646834,-500.0,0.00015419,2]
[419701675,1775316646844,-151.0,0.00015419,2]
[419701676,1775316646854,-150.0,0.00015421,2]
[419701677,1775316646864,-150.0,0.00015421,2]
[419701678,1775316646876,-236.63472523,0.00015422,2]
[419701679,1775316646886,-150.0,0.00015424,2]
[419701680,1775316646896,-150.0,0.00015424,2]
[419701681,1775316646907,-474.66,0.00015426,2]
[419701682,1775316646918,-150.0,0.00015429,2]
[419701683,1775316646928,-150.0,0.00015429,2]
[419701684,1775316646939,-279.57895084,0.0001544,2]
[419701685,1775316646949,-150.0,0.00015442,2]
[419701686,1775316646960,-300.0,0.00015443,2]
[419701687,1775316646971,-150.0,0.00015445,2]
[419701688,1775316646981,-150.0,0.00015447,2]
[419701689,1775316646992,-150.0,0.00015448,2]
[419701690,1775316647002,-150.0,0.00015448,2]
[419701691,1775316647012,-700.0,0.00015452,2]
[419701692,1775316647023,-2392.78341865,0.00015457,2]
[419701693,1775316647033,-150.0,0.00015467,2]
[419701694,1775316647044,-150.0,0.00015467,2]
[419701695,1775316647054,-150.0,0.00015467,2]
[419701696,1775316647065,-150.0,0.00015467,2]
[419701697,1775316647076,-1057.35332853,0.00015467,2]
[419701698,1775316647087,-500.0,0.00015474,2]
[419701699,1775316647097,-151.0,0.00015474,2]
[419701700,1775316647108,-150.0,0.00015476,2]
[419701701,1775316647118,-150.0,0.00015476,2]
[419701702,1775316647129,-150.0,0.00015476,2]
[419701703,1775316647139,-150.0,0.00015479,2]
[419701705,1775316647150,-150.0,0.00015488,2]
[419701706,1775316647160,-150.0,0.00015488,2]
[419701707,1775316647171,-150.0,0.00015491,2]
[419701708,1775316647181,-150.0,0.00015503,2]
[419701709,1775316647192,-150.0,0.00015503,2]
[419701711,1775316647203,-150.0,0.00015505,2]
[419701712,1775316647213,-300.0,0.00015505,2]
[419701713,1775316647224,-150.0,0.00015505,2]
[419701714,1775316647235,-3255.0,0.00015507,2]
[419701715,1775316647246,-150.0,0.00015509,2]
[419701717,1775316647256,-350.0,0.00015513,2]
[419701718,1775316647266,-150.0,0.00015516,2]
[419701719,1775316647276,-179.35,0.00015528,2]
[419701720,1775316647287,-500.0,0.00015529,2]
[419701721,1775316647297,-151.0,0.00015529,2]
[419701722,1775316647308,-150.0,0.00015531,2]
[419701723,1775316647319,-150.0,0.00015531,2]
[419701724,1775316647332,-150.0,0.00015531,2]
[419701725,1775316647343,-150.0,0.00015535,2]
[419701726,1775316647354,-150.0,0.00015543,2]
[419701727,1775316647364,-150.0,0.00015543,2]
[419701728,1775316647375,-150.0,0.00015543,2]
[419701729,1775316647387,-150.0,0.00015552,2]
[419701730,1775316647397,-150.0,0.00015552,2]
[419701731,1775316647408,-150.0,0.00015553,2]
[419701732,1775316647419,-9360.56721341,0.00015555,2]
[419701733,1775316647430,-8154.22157126,0.00015556,2]
[419701734,1775316647440,-150.0,0.00015559,2]
[419701735,1775316647451,-150.0,0.00015559,2]
[419701736,1775316647462,-150.0,0.00015564,2]
[419701737,1775316647472,-150.0,0.00015564,2]
[419701738,1775316647483,-150.0,0.00015573,2]
[419701739,1775316647495,-150.0,0.00015581,2]
[419701740,1775316647507,-184.77,0.00015582,2]
[419701741,1775316647517,-500.0,0.00015584,2]
[419701742,1775316647528,-151.0,0.00015584,2]
[419701743,1775316647539,-150.0,0.00015586,2]
[419701744,1775316647550,-150.0,0.00015586,2]
[419701745,1775316647560,-150.0,0.00015591,2]
[419701746,1775316647571,-150.0,0.00015593,2]
[419701747,1775316647582,-150.0,0.00015595,2]
[419701748,1775316647593,-3108.0,0.00015596,2]
[419701749,1775316647603,-156.0,0.000156,2]
[419701750,1775316647613,-2000.0,0.00015601,2]
[419701751,1775316647624,-150.0,0.00015614,2]
[419701752,1775316647634,-150.0,0.00015614,2]
[419701753,1775316647645,-150.0,0.00015616,2]
[419701754,1775316647655,-150.0,0.00015616,2]
[419701755,1775316647665,-150.0,0.00015619,2]
[419701756,1775316647676,-150.0,0.00015622,2]
[419701757,1775316647686,-2308.5746154,0.00015622,2]
[419701758,1775316647696,-604899.0481171,0.00015622,2]
[419701759,1775316647706,-150.0,0.00015628,2]
[419701760,1775316647717,-3108.0,0.00015629,2]
[419701761,1775316647728,-150.0,0.00015636,2]
[419701762,1775316647738,-150.0,0.00015637,2]
[419701763,1775316647749,-500.0,0.00015639,2]
[419701764,1775316647759,-151.0,0.00015639,2]
[419701765,1775316647769,-150.0,0.00015641,2]
[419701766,1775316647780,-150.0,0.00015641,2]
[419701767,1775316647790,-150.0,0.00015651,2]
[419701768,1775316647800,-129536.8347833,0.00015655,2]
[419701769,1775316647810,-33730.684177,0.00015655,2]
[419701770,1775316647820,-150.0,0.00015657,2]
[419701771,1775316647830,-150.0,0.00015657,2]
[419701772,1775316647841,-150.0,0.00015659,2]
[419701773,1775316647851,-150.0,0.00015665,2]
[419701774,1775316647862,-150.0,0.00015669,2]
[419701775,1775316647872,-150.0,0.00015669,2]
[419701776,1775316647882,-159.73,0.00015671,2]
[419701777,1775316647892,-2191.80810614,0.0001568,2]
[419701778,1775316647902,-150.0,0.0001568,2]
[419701779,1775316647912,-150.0,0.0001568,2]
[419701780,1775316647922,-150.0,0.0001568,2]
[419701781,1775316647933,-785.54,0.0001569,2]
[419701782,1775316647943,-500.0,0.00015694,2]
[419701783,1775316647953,-151.0,0.00015694,2]
[419701784,1775316647963,-150.0,0.00015695,2]
[419701785,1775316647974,-150.0,0.00015697,2]
[419701786,1775316647985,-150.0,0.00015697,2]
[419701787,1775316647995,-2000.0,0.000157,2]
[419701788,1775316648005,-2000.0,0.00015701,2]
[419701789,1775316648015,-150.0,0.00015701,2]
[419701790,1775316648026,-150.0,0.00015702,2]
[419701791,1775316648036,-150.0,0.00015709,2]
[419701792,1775316648047,-150.0,0.00015709,2]
[419701793,1775316648057,-150.0,0.00015723,2]
[419701794,1775316648068,-150.0,0.00015724,2]
[419701795,1775316648078,-150.0,0.00015724,2]
[419701796,1775316648088,-1100.0,0.00015726,2]
[419701797,1775316648098,-1000.0,0.00015731,2]
[419701798,1775316648108,-194.39,0.00015733,2]
[419701799,1775316648119,-150.0,0.00015733,2]
[419701800,1775316648128,-1000.0,0.00015735,2]
[419701801,1775316648138,-150.0,0.00015738,2]
[419701802,1775316648149,-150.0,0.0001574,2]
[419701803,1775316648160,-150.0,0.00015744,2]
[419701804,1775316648171,-150.0,0.00015744,2]
[419701805,1775316648182,-492.45889797,0.00015747,2]
[419701806,1775316648193,-200.0,0.00015747,2]
[419701807,1775316648204,-771.01748645,0.00015747,2]
[419701808,1775316648213,-181.08010149,0.00015747,2]
[419701809,1775316648224,-200.0,0.00015747,2]
[419701810,1775316648235,-191.85702264,0.00015747,2]
[419701811,1775316648244,-500.0,0.00015749,2]
[419701812,1775316648254,-151.0,0.00015749,2]
[419701813,1775316648264,-150.0,0.00015752,2]
[419701814,1775316648276,-150.0,0.00015752,2]
[419701815,1775316648287,-245.407609,0.00015753,2]
[419701816,1775316648297,-150.0,0.00015764,2]
[419701817,1775316648307,-150.0,0.00015765,2]
[419701818,1775316648317,-150.0,0.00015767,2]
[419701819,1775316648328,-150.0,0.00015771,2]
[419701820,1775316648338,-150.0,0.00015771,2]
[419701821,1775316648348,-150.0,0.00015771,2]
[419701822,1775316648359,-1000.0,0.00015773,2]
[419701823,1775316648369,-150.0,0.00015777,2]
[419701824,1775316648380,-1138.59520902,0.00015779,2]
[419701825,1775316648390,-1105.77459859,0.00015779,2]
[419701826,1775316648401,-967.92688544,0.00015779,2]
[419701827,1775316648412,-1538.701433,0.00015779,2]
[419701828,1775316648423,-150.0,0.00015779,2]
[419701829,1775316648433,-150.0,0.00015779,2]
[419701830,1775316648444,-150.0,0.00015782,2]
[419701831,1775316648454,-150.0,0.00015787,2]
[419701832,1775316648465,-150.0,0.00015796,2]
[419701833,1775316648476,-2000.0,0.000158,2]
[419701834,1775316648485,-5888.0,0.000158,2]
[419701835,1775316648496,-2000.0,0.00015801,2]
[419701836,1775316648506,-150.0,0.00015807,2]
[419701837,1775316648517,-150.0,0.00015807,2]
[419701838,1775316648527,-150.0,0.00015808,2]
[419701839,1775316648538,-150.0,0.00015808,2]
[419701840,1775316648549,-150.0,0.0001581,2]
[419701841,1775316648561,-150.0,0.0001581,2]
[419701842,1775316648573,-150.0,0.00015814,2]
[419701843,1775316648584,-150.0,0.00015815,2]
[419701844,1775316648595,-150.0,0.00015825,2]
[419701845,1775316648605,-150.0,0.00015829,2]
[419701846,1775316648616,-150.0,0.00015834,2]
[419701847,1775316648626,-150.0,0.00015834,2]
[419701848,1775316648637,-983.48808,0.0001584,2]
[419701849,1775316648647,-983.48809,0.0001584,2]
[419701850,1775316648658,-1000.0,0.00015841,2]
[419701851,1775316648668,-150.0,0.00015843,2]
[419701852,1775316648678,-150.0,0.00015848,2]
[419701853,1775316648688,-150.0,0.0001585,2]
[419701854,1775316648698,-983.48809,0.0001585,2]
[419701855,1775316648815,-150.0,0.00015851,2]
[419701856,1775316648826,-150.0,0.00015851,2]
[419701857,1775316648836,-150.0,0.00015855,2]
[419701858,1775316648846,-150.0,0.00015855,2]
[419701859,1775316648855,-150.0,0.00015858,2]
[419701860,1775316648865,-1000.0,0.00015858,2]
[419701861,1775316648874,-1000.0,0.0001586,2]
[419701862,1775316648884,-1000.0,0.0001586,2]
[419701863,1775316648893,-1000.0,0.0001586,2]
[419701864,1775316648903,-728.376,0.0001586,2]
[419701865,1775316648912,-150.0,0.00015862,2]
[419701866,1775316648922,-150.0,0.00015862,2]
[419701867,1775316648932,-500.0,0.00015872,2]
[419701868,1775316648942,-200.0,0.00015872,2]
[419701869,1775316648951,-150.0,0.00015872,2]
[419701870,1775316648961,-150.0,0.00015872,2]
[419701871,1775316648971,-1000.0,0.00015877,2]
[419701872,1775316648980,-150.0,0.00015884,2]
[419701873,1775316648990,-1000.0,0.00015884,2]
[419701874,1775316649000,-150.0,0.00015886,2]
[419701875,1775316649009,-150.0,0.00015886,2]
[419701876,1775316649019,-150.0,0.00015888,2]
[419701877,1775316649029,-150.0,0.0001589,2]
[419701878,1775316649038,-150.0,0.0001589,2]
[419701879,1775316649048,-150.0,0.00015893,2]
[419701880,1775316649058,-3255.0,0.00015895,2]
[419701881,1775316649068,-3108.0,0.00015895,2]
[419701882,1775316649078,-172.01180661,0.000159,2]
[419701883,1775316649088,-9360.56721341,0.000159,2]
[419701884,1775316649098,-8154.22157126,0.000159,2]
[419701885,1775316649108,-2000.0,0.000159,2]
[419701886,1775316649117,-2392.78341865,0.000159,2]
[419701887,1775316649126,-282.04099016,0.000159,2]
[419701888,1775316649136,-418.62752302,0.000159,2]
[419701889,1775316649146,-2596.0,0.000159,5]
[419701890,1775316649155,-2073.0,0.000159,5]
[419701891,1775316649165,-2000.0,0.00015901,2]
[419701892,1775316649175,-150.0,0.00015913,2]
[419701893,1775316649185,-150.0,0.00015915,2]
[419701894,1775316649195,-276.0,0.00015915,2]
[419701895,1775316649204,-150.0,0.00015917,2]
[419701896,1775316649214,-150.0,0.00015917,2]
[419701897,1775316649224,-150.0,0.00015924,2]
[419701898,1775316649234,-150.0,0.00015926,2]
[419701899,1775316649244,-150.0,0.00015927,2]
[419701900,1775316649253,-150.0,0.00015928,2]
[419701901,1775316649263,-150.0,0.00015936,2]
[419701902,1775316649274,-150.0,0.00015936,2]
[419701903,1775316649284,-150.0,0.00015942,2]
[419701904,1775316649294,-150.0,0.00015945,2]
[419701905,1775316649303,-150.0,0.00015945,2]
[419701906,1775316649313,-150.0,0.00015952,2]
[419701907,1775316649322,-474.6616544,0.00015954,2]
[419701908,1775316649333,-1000.0,0.00015956,2]
[419701909,1775316649342,-150.0,0.00015957,2]
[419701910,1775316649352,-5032.90549885,0.0001596,2]
[419701911,1775316649362,-150.0,0.0001596,2]
[419701912,1775316649371,-150.0,0.00015962,2]
[419701913,1775316649381,-150.0,0.00015963,2]
[419701914,1775316649391,-150.0,0.00015963,2]
[419701915,1775316649401,-209.23,0.00015964,2]
[419701916,1775316649410,-1000.0,0.00015966,2]
[419701917,1775316649420,-276.0,0.00015967,2]
[419701918,1775316649430,-150.0,0.00015971,2]
[419701919,1775316649439,-150.0,0.00015972,2]
[419701920,1775316649449,-150.0,0.00015972,2]
[419701921,1775316649458,-5888.0,0.00015975,2]
[419701922,1775316649468,-150.0,0.00015979,2]